[Event "1000GM Spring GM-A 2024"]
[Site "New York"]
[Date "2024.03.29"]
[Round "3.3"]
[White "Bortnyk, Mykola"]
[Black "Zilka, Stepan"]
[Result "1/2-1/2"]
[ECO "B99"]
[WhiteElo "2453"]
[BlackElo "2589"]
[Annotator "RC"]
[PlyCount "118"]
[EventDate "2024.03.26"]
[EventType "tourn"]
[EventCountry "USA"]
[SourceTitle "playchess.com"]
[Source "ChessBase"]
[SourceQuality "1"]
[TimeControl "5400+30"]

1. e4 {[%emt 0:00:06]} c5 {[%emt 0:00:26]} 2. Nf3 {[%emt 0:00:25]} d6 {[%emt 0:00:10]} 3. d4 {[%emt 0:00:10]} cxd4 {[%emt 0:00:04]} 4. Nxd4 {[%emt 0:00:04]} Nf6 {[%emt 0:00:04]} 5. Nc3 {[%emt 0:00:07]} a6 {[%emt 0:00:03]} 6. Bg5 {[%emt 0:00:52]} e6 {[%emt 0:00:12]} 7. f4 {[%emt 0:00:05]} Be7 {[%emt 0:00:34]} 8. Qf3 {[%emt 0:00:20]} Nbd7 {[%emt 0:00:32]} 9. O-O-O {[%emt 0:00:16]} Qc7 {[%emt 0:00:22]} 10. g4 {[%emt 0:00:19]} b5 {[%emt 0:05:45]} 11. Bxf6 {[%emt 0:01:39]} Nxf6 {[%emt 0:00:31]} 12. g5 {[%emt 0:01:14]} Nd7 {[%emt 0:00:04]} 13. h4 {[%emt 0:00:18]} b4 {[%emt 0:01:09]} 14. Nce2 {[%emt 0:02:25]} Bb7 {[%emt 0:00:17]} 15. h5 {[%emt 0:00:47]} Rc8 {[%emt 0:08:09]} 16. g6 {[%emt 0:04:53]} f5 {[%emt 0:00:54]} 17. h6 {[%emt 0:01:10]} hxg6 {[%emt 0:06:23]} 18. Qg3 {[%emt 0:01:45]} Kf7 {[%emt 0:00:41]} 19. exf5 {[%emt 0:00:51]} exf5 {[%emt 0:00:46]} 20. Bg2 {[%emt 0:05:48]} Bxg2 {[%emt 0:00:19]} 21. Qxg2 {[%emt 0:00:02]} Rxh6 {[%emt 0:00:28]} 22. Qd5+ {[%emt 0:06:30]} Ke8 {[%emt 0:00:06]} 23. Qg8+ {[%emt 0:04:43]} Nf8 {[%emt 0:00:02]} 24. Qxg7 {[%emt 0:00:07]} Rxh1 {[%emt 0:00:46]} 25. Rxh1 {[%emt 0:00:02]} Bd8 {[%emt 0:08:51]} 26. Qh8 {[%emt 0:03:19]} Qc4 {[%emt 0:01:00]} 27. Rh3 {[%emt 0:02:58]} Rc7 {[%emt 0:01:03]} 28. b3 {[%emt 0:03:49]} Qd5 {[%emt 0:00:30]} 29. Re3+ {[%emt 0:03:04]} Re7 {[%emt 0:06:25]} 30. c4 {[%emt 0:00:05]} bxc3 {[%emt 0:04:28]} 31. Nxc3 {[%emt 0:01:26]} Qc5 {[%emt 0:01:01]} 32. Rxe7+ {[%emt 0:01:17]} Bxe7 {[%emt 0:00:22]} 33. Kc2 {[%emt 0:00:07]} Kf7 {[%emt 0:01:15]} 34. Kd3 {[%emt 0:00:13]} Bf6 {[%emt 0:10:53]} 35. Qxf8+ {[%emt 0:00:13]} Kxf8 {[%emt 0:00:04]} 36. Ne6+ {[%emt 0:00:04]} Kf7 {[%emt 0:00:16]} 37. Nxc5 {[%emt 0:00:05]} dxc5 {[%emt 0:00:06]} 38. Nd5 {[%emt 0:07:06]} Be7 {[%emt 0:01:59]} 39. Ke3 {[%emt 0:00:16]} Ke6 {[%emt 0:01:11]} 40. Nb6 {[%emt 0:03:38]} Bf6 {[%emt 0:02:10]} 41. Nc4 {[%emt 0:00:06]} Kd5 {[%emt 0:00:51]} 42. Kd3 {[%emt 0:00:07]} g5 {[%emt 0:04:43]} 43. fxg5 {[%emt 0:00:22]} Bxg5 {[%emt 0:00:05]} 44. Nb6+ {[%emt 0:00:05]} Ke5 {[%emt 0:00:46]} 45. Nd7+ {[%emt 0:00:06]} Kd6 {[%emt 0:00:26]} 46. Nb6 {[%emt 0:00:04]} Bd8 {[%emt 0:00:52]} 47. Nc4+ {[%emt 0:00:07]} Kd5 {[%emt 0:01:29]} 48. Ke3 {[%emt 0:00:06]} Bg5+ {[%emt 0:01:17]} 49. Kd3 {[%emt 0:00:02]} f4 {[%emt 0:02:25]} 50. Nd2 {[%emt 0:00:03]} Bf6 {[%emt 0:01:04]} 51. Nf3 {[%emt 0:00:29]} Bd4 {[%emt 0:01:03]} 52. Nd2 {[%emt 0:00:11]} Be3 {[%emt 0:02:19]} 53. Nf3 {[%emt 0:00:07]} Bc1 {[%emt 0:00:48]} 54. Ng5 {[%emt 0:00:07]} Ke5 {[%emt 0:00:33]} 55. Nf3+ {[%emt 0:00:03]} Kf5 {[%emt 0:00:06]} 56. Nh2 {[%emt 0:00:08]} Be3 {[%emt 0:00:48]} 57. Nf3 {[%emt 0:00:03]} Kg4 {[%emt 0:00:42]} 58. Ke2 {[%emt 0:00:04]} Bc1 {[%emt 0:03:06]} 59. Nh2+ {[%emt 0:00:08]} Kf5 {[%emt 0:01:22]} 1/2-1/2

[Event "1000GM Spring GM-A 2024"]
[Site "New York"]
[Date "2024.03.29"]
[Round "3.4"]
[White "Huston, Gus"]
[Black "Sethuraman, Sandeep"]
[Result "1/2-1/2"]
[ECO "D45"]
[WhiteElo "2401"]
[BlackElo "2381"]
[Annotator "TA"]
[PlyCount "87"]
[EventDate "2024.03.26"]
[EventType "tourn"]
[EventCountry "USA"]
[SourceTitle "playchess.com"]
[Source "ChessBase"]
[SourceQuality "1"]
[TimeControl "5400+30"]

{[%evp 13,87,12,18,19,28,24,16,29,27,31,26,35,40,31,24,25,20,18,30,28,17,29,29,17,45,48,42,57,56,47,67,56,74,9,29,8,11,10,12,17,45,34,50,53,49,48,47,33,42,39,35,38,28,34,35,29,54,26,88,88,89,26,25,8,10,0,25,20,23,10,16,2,2,0,6,0]} 1. d4 {[%emt 0:00:30]} d5 {[%emt 0:00:05]} 2. c4 {[%emt 0:00:04]} c6 {[%emt 0:00:03]} 3. Nf3 {[%emt 0:00:04]} Nf6 {[%emt 0:00:06]} 4. Nc3 {[%emt 0:00:04]} e6 {[%emt 0:00:42]} 5. e3 {[%emt 0:00:26]} a6 {[%emt 0:00:13]} 6. Qc2 {[%emt 0:00:43]} c5 {[%emt 0:00:07]} 7. cxd5 {[%emt 0:00:37]} exd5 {[%emt 0:00:06]} 8. Be2 {[%emt 0:01:03]} Nc6 {[%emt 0:00:27]} 9. O-O {[%emt 0:01:55]} Be6 {[%emt 0:00:09]} 10. Rd1 {[%emt 0:00:07]} Nb4 {[%emt 0:00:13]} 11. Qb1 {[%emt 0:00:10]} Qc8 {[%emt 0:00:17]} 12. Bd2 {[%emt 0:00:06]} Bf5 {[%emt 0:03:29]} 13. Qc1 {[%emt 0:00:01] And now Na4 would win.} c4 {[%emt 0:00:08]} 14. a3 {[%emt 0:00:57]} Nc6 {[%emt 0:01:25] [#]} 15. b3 $1 {[%emt 0:00:25]} cxb3 {[%emt 0:08:33]} 16. Qb2 {[%emt 0:00:01]} Bd6 {[%emt 0:10:24]} 17. Qxb3 {[%emt 0:01:44]} Qd7 {[%emt 0:04:45]} 18. Na4 {[%emt 0:01:15] Strongly threatening Nb6.} (18. Nxd5 $2 Nxd5 19. Bc4 Nc7 $19) 18... Rd8 {[%emt 0:06:14]} 19. Rac1 {[%emt 1:29:48][%cal Of3e5]} O-O {[%emt 0:03:52]} 20. Nc5 {[%emt 0:00:00]} Bxc5 {[%emt 0:00:11]} 21. dxc5 {[%emt 0:00:00]} Ne4 {[%emt 0:10:42]} 22. Be1 {[%emt 0:00:00]} Rfe8 {[%emt 0:02:54]} 23. Nh4 {[%emt 0:00:00]} (23. Nd4 $16) 23... Be6 $11 {[%emt 0:02:17]} 24. Qc2 {[%emt 0:00:00]} Qe7 {[%emt 0:02:35]} 25. Nf3 {[%emt 0:00:00]} Bg4 {[%emt 0:08:42]} 26. h3 {[%emt 0:00:00][%cal Bh2h3,Bh3h4][%mdl 32]} Bf5 {[%emt 0:10:35][%cal Oe4f2] White must now prevent ...Nxf2!} 27. Nd4 {[%emt 0:00:00]} Nxd4 {[%emt 0:00:41]} 28. Rxd4 {[%emt 0:00:00]} Qg5 {[%emt 0:00:46][%cal Oe4f2] [#] Hoping for ...Nxf2!} 29. h4 $1 {[%emt 0:00:00]} Qe7 {[%emt 0:07:49]} (29... Qxh4 $6 30. f3 Qg5 31. fxe4 Bxe4 32. Bd3 Bxg2 33. Bxh7+ Kh8 34. Bh4 Qxe3+ 35. Bf2 $18) 30. Qd1 {[%emt 0:00:00]} Be6 {[%emt 0:02:52][%cal Od8c8]} ({Much worse is} 30... Qxh4 $6 31. f3 (31. Rxd5 Qe7 $14) 31... Qg5 32. fxe4 Bxe4 33. Bf1 $16) 31. c6 {[%emt 0:00:00]} bxc6 {[%emt 0:02:05]} 32. Rxc6 {[%emt 0:00:00]} Qxa3 {[%emt 0:01:54]} 33. Rxa6 {[%emt 0:00:00]} Qb2 {[%emt 0:00:52]} 34. Bf3 {[%emt 0:00:00]} Rb8 {[%emt 0:04:00]} 35. Rc6 {[%emt 0:00:00]} (35. Bxe4 {simplifies} dxe4 36. Rxe4 h6 37. Rd4) 35... Rec8 {[%emt 0:01:22]} (35... Qb7 $11 36. Rc1 h6) 36. Rxc8+ $16 {[%emt 0:00:00]} Rxc8 {[%emt 0:00:04]} 37. Rb4 {[%emt 0:00:00]} (37. Bxe4 $16 Rc1 38. Qd2 Qxd2 39. Rxd2) 37... Qe5 $11 {[%emt 0:00:13]} 38. Qb1 {[%emt 0:01:53][%cal Rf3e4]} Bf5 {[%emt 0:03:31][%cal Oe4f2]} 39. Qd1 {[%emt 0:02:22]} (39. Qb2 {simplifies} Qxb2 40. Rxb2 h6 41. Bb4) 39... h6 {[%emt 0:00:18]} 40. Rd4 {[%emt 0:00:42]} Be6 {[%emt 0:00:10]} 41. Bb4 {[%emt 0:01:15]} Rc4 {[%emt 0:00:38] The position is equal.} 42. Rxc4 {[%emt 0:01:07]} dxc4 {[%emt 0:00:01]} 43. Qc2 {[%emt 0:02:41]} Bd5 {[%emt 0:00:53]} 44. Bxe4 {[%emt 0:00:32] Weighted Error Value: White=0.10 (very precise) /Black=0.09 (flawless) .  Mistake:       	White=2     	Black=1      Inaccurate:     	White=1     	Black=2      OK:         	White=15    	Black=19     Best:        	White=2     	Black=1} 1/2-1/2

[Event "1000GM Spring GM-A 2024"]
[Site "New York"]
[Date "2024.03.29"]
[Round "3.5"]
[White "Lu, Maximillian"]
[Black "Novik, Maxim"]
[Result "1/2-1/2"]
[ECO "A30"]
[WhiteElo "2375"]
[BlackElo "2415"]
[Annotator "RC"]
[PlyCount "121"]
[EventDate "2024.03.26"]
[EventType "tourn"]
[EventCountry "USA"]
[SourceTitle "playchess.com"]
[Source "ChessBase"]
[SourceQuality "1"]
[TimeControl "5400+30"]

1. Nf3 {[%emt 0:00:05]} c5 {[%emt 0:00:30]} 2. c4 {[%emt 0:00:48]} Nf6 {[%emt 0:01:26]} 3. g3 {[%emt 0:00:12]} b6 {[%emt 0:03:33]} 4. Bg2 {[%emt 0:00:11]} Bb7 {[%emt 0:00:03]} 5. O-O {[%emt 0:00:12]} g6 {[%emt 0:00:03]} 6. d4 {[%emt 0:05:41]} cxd4 {[%emt 0:01:07]} 7. Qxd4 {[%emt 0:00:01]} Bg7 {[%emt 0:00:07]} 8. Nc3 {[%emt 0:00:15]} d6 {[%emt 0:00:04]} 9. Rd1 {[%emt 0:03:48]} Nbd7 {[%emt 0:00:08]} 10. Ng5 {[%emt 0:06:58]} Bxg2 {[%emt 0:01:37]} 11. Kxg2 {[%emt 0:00:02]} O-O {[%emt 0:01:31]} 12. b3 {[%emt 0:07:01]} Qc8 {[%emt 0:01:49]} 13. Bb2 {[%emt 0:00:59]} Qb7+ {[%emt 0:01:23]} 14. Kg1 {[%emt 0:02:54]} h6 {[%emt 0:01:25]} 15. Nf3 {[%emt 0:00:31]} Rac8 {[%emt 0:03:56]} 16. Rac1 {[%emt 0:04:26]} Rfe8 {[%emt 0:00:52]} 17. Nd5 {[%emt 0:03:47]} a6 {[%emt 0:11:50]} 18. Qd2 {[%emt 0:34:23]} Nxd5 {[%emt 0:10:09]} 19. Bxg7 {[%emt 0:00:02]} Kxg7 {[%emt 0:00:02]} 20. cxd5 {[%emt 0:01:01]} Nf6 {[%emt 0:03:21]} 21. Qd4 {[%emt 0:02:01]} Rc5 {[%emt 0:01:18]} 22. e4 {[%emt 0:04:50]} Rec8 {[%emt 0:00:20]} 23. Ra1 {[%emt 0:04:48]} Kh7 {[%emt 0:01:30]} 24. Ne1 {[%emt 0:01:00]} Qd7 {[%emt 0:04:26]} 25. Nd3 {[%emt 0:01:03]} Qh3 {[%emt 0:01:30]} 26. Nf4 {[%emt 0:07:45]} Qg4 {[%emt 0:01:52]} 27. Kg2 {[%emt 0:01:17]} Rc3 {[%emt 0:04:26]} 28. Rd3 {[%emt 0:00:01]} Rc2 {[%emt 0:00:43]} 29. h3 {[%emt 0:05:23]} Qg5 {[%emt 0:07:11]} 30. Rf3 {[%emt 0:00:01]} Kg8 {[%emt 0:02:32]} 31. h4 {[%emt 0:01:32]} Qg4 {[%emt 0:02:02]} 32. Re1 {[%emt 0:00:13]} Nd7 {[%emt 0:01:20]} 33. Nd3 {[%emt 0:00:09]} Rd2 {[%emt 0:02:59]} 34. Rf4 {[%emt 0:00:11]} Qh5 {[%emt 0:01:15]} 35. Qe3 {[%emt 0:00:01]} Rdc2 {[%emt 0:03:13]} 36. Qd4 {[%emt 0:02:47]} Ne5 {[%emt 0:01:06]} 37. Nb4 {[%emt 0:01:48]} R2c3 {[%emt 0:00:21]} 38. Nc6 {[%emt 0:00:40]} R3xc6 {[%emt 0:00:39]} 39. dxc6 {[%emt 0:00:01]} Rxc6 {[%emt 0:00:00]} 40. Qd2 {[%emt 0:00:59]} e6 {[%emt 0:00:54]} 41. f3 {[%emt 0:00:37]} g5 {[%emt 0:02:34]} 42. hxg5 {[%emt 0:00:30]} hxg5 {[%emt 0:00:01]} 43. Rf6 {[%emt 0:00:01]} g4 {[%emt 0:01:45]} 44. fxg4 {[%emt 0:00:32]} Nxg4 {[%emt 0:00:02]} 45. Rh1 {[%emt 0:00:15]} Qe5 {[%emt 0:02:11]} 46. Rf4 {[%emt 0:00:14]} f5 {[%emt 0:00:06]} 47. Rh5 {[%emt 0:01:31]} Rc2 {[%emt 0:01:24]} 48. Rxg4+ {[%emt 0:00:08]} fxg4 {[%emt 0:00:01]} 49. Qxc2 {[%emt 0:00:04]} Qxh5 {[%emt 0:00:02]} 50. Qc8+ {[%emt 0:00:15]} Kg7 {[%emt 0:01:25]} 51. Qxe6 {[%emt 0:01:26]} Qh3+ {[%emt 0:00:04]} 52. Kf2 {[%emt 0:00:00]} Qh2+ {[%emt 0:00:02]} 53. Kf1 {[%emt 0:00:19]} Qh1+ {[%emt 0:01:15]} 54. Ke2 {[%emt 0:00:01]} Qf3+ {[%emt 0:00:25]} 55. Kd2 {[%emt 0:00:03]} Qf2+ {[%emt 0:01:41]} 56. Kd1 {[%emt 0:00:38]} Qxg3 {[%emt 0:00:26]} 57. Qe7+ {[%emt 0:00:08]} Kg6 {[%emt 0:00:34]} 58. Qe6+ {[%emt 0:00:06]} Kg5 {[%emt 0:00:41]} 59. Qf5+ {[%emt 0:00:01]} Kh4 {[%emt 0:00:11]} 60. Qh7+ {[%emt 0:00:01]} Kg5 {[%emt 0:00:12]} 61. Qf5+ {[%emt 0:00:06]} 1/2-1/2

[Event "1000GM Spring GM-A 2024"]
[Site "New York"]
[Date "2024.03.29"]
[Round "4.1"]
[White "Shlyakhtenko, Robert"]
[Black "Novik, Maxim"]
[Result "1-0"]
[ECO "A65"]
[WhiteElo "2384"]
[BlackElo "2415"]
[Annotator "RC"]
[PlyCount "55"]
[EventDate "2024.03.26"]
[EventType "tourn"]
[EventCountry "USA"]
[SourceTitle "playchess.com"]
[Source "ChessBase"]
[SourceQuality "1"]
[TimeControl "5400+30"]

1. d4 {[%emt 0:00:05]} Nf6 {[%emt 0:00:09]} 2. c4 {[%emt 0:00:09]} g6 {[%emt 0:00:03]} 3. f3 {[%emt 0:00:15]} c5 {[%emt 0:01:05]} 4. d5 {[%emt 0:00:08]} e6 {[%emt 0:00:39]} 5. e4 {[%emt 0:00:17]} exd5 {[%emt 0:00:11]} 6. cxd5 {[%emt 0:00:07]} d6 {[%emt 0:00:05]} 7. Nc3 {[%emt 0:00:27]} Bg7 {[%emt 0:00:06]} 8. Nge2 {[%emt 0:00:09]} h5 {[%emt 0:01:02]} 9. Bg5 {[%emt 0:00:27]} a6 {[%emt 0:02:39]} 10. a4 {[%emt 0:00:11]} Qc7 {[%emt 0:02:28]} 11. Qd2 {[%emt 0:00:57]} Nbd7 {[%emt 0:00:38]} 12. Nc1 {[%emt 0:00:54]} O-O {[%emt 0:00:43]} 13. Be2 {[%emt 0:00:33]} Rb8 {[%emt 0:02:46]} 14. O-O {[%emt 0:01:19]} c4 {[%emt 0:18:12]} 15. Be3 {[%emt 0:00:52]} Nc5 {[%emt 0:00:32]} 16. Ra3 {[%emt 0:17:42]} Nfd7 {[%emt 0:11:14]} 17. Bxc4 {[%emt 0:07:38]} Nxe4 {[%emt 0:01:12]} 18. Nxe4 {[%emt 0:00:13]} Qxc4 {[%emt 0:00:02]} 19. Nxd6 {[%emt 0:01:19]} Qc7 {[%emt 0:00:22]} 20. Ne4 {[%emt 0:00:36]} Ne5 {[%emt 0:06:29]} 21. Rc3 {[%emt 0:11:34]} Qa5 {[%emt 0:04:02]} 22. Rxc8 {[%emt 0:01:47]} Qxa4 {[%emt 0:02:40]} 23. b3 {[%emt 0:01:34]} Qb5 {[%emt 0:00:44]} 24. Rc5 {[%emt 0:00:16]} Qd7 {[%emt 0:00:17]} 25. Nd3 {[%emt 0:00:58]} Rfe8 {[%emt 0:00:56]} 26. Nxe5 {[%emt 0:00:39]} Bxe5 {[%emt 0:00:14]} 27. d6 {[%emt 0:00:17]} Bg7 {[%emt 0:00:19]} 28. Bd4 {[%emt 0:00:48]} 1-0

[Event "1000GM Spring GM-A 2024"]
[Site "New York"]
[Date "2024.03.29"]
[Round "4.2"]
[White "Sethuraman, Sandeep"]
[Black "Lu, Maximillian"]
[Result "1/2-1/2"]
[ECO "D35"]
[WhiteElo "2381"]
[BlackElo "2375"]
[Annotator "RC"]
[PlyCount "101"]
[EventDate "2024.03.26"]
[EventType "tourn"]
[EventCountry "USA"]
[SourceTitle "playchess.com"]
[Source "ChessBase"]
[SourceQuality "1"]
[TimeControl "5400+30"]

1. d4 {[%emt 0:02:23]} Nf6 {[%emt 0:00:02]} 2. c4 {[%emt 0:00:04]} e6 {[%emt 0:00:09]} 3. Nc3 {[%emt 0:00:05]} d5 {[%emt 0:00:06]} 4. cxd5 {[%emt 0:00:08]} exd5 {[%emt 0:00:01]} 5. Bg5 {[%emt 0:00:08]} c6 {[%emt 0:00:12]} 6. Qc2 {[%emt 0:00:07]} Bd6 {[%emt 0:00:09]} 7. e3 {[%emt 0:02:53]} O-O {[%emt 0:00:23]} 8. Bd3 {[%emt 0:02:43]} h6 {[%emt 0:00:06]} 9. Bh4 {[%emt 0:00:04]} Re8 {[%emt 0:00:08]} 10. Nf3 {[%emt 0:05:45]} Be6 {[%emt 0:01:15]} 11. O-O {[%emt 0:08:00]} Nbd7 {[%emt 0:00:07]} 12. Bg3 {[%emt 0:07:53]} Bxg3 {[%emt 0:00:58]} 13. hxg3 {[%emt 0:00:06]} a5 {[%emt 0:02:23]} 14. a3 {[%emt 0:05:43]} Qe7 {[%emt 0:09:10]} 15. Rfe1 {[%emt 0:05:49]} Qd6 {[%emt 0:04:28]} 16. Rab1 {[%emt 0:03:22]} Rec8 {[%emt 0:07:01]} 17. Rec1 {[%emt 0:06:21]} b5 {[%emt 0:11:04]} 18. Ra1 {[%emt 0:07:19]} Rab8 {[%emt 0:03:22]} 19. Ne2 {[%emt 0:02:52]} Bg4 {[%emt 0:11:30]} 20. Nh2 {[%emt 0:13:15]} Be6 {[%emt 0:12:27]} 21. Nf4 {[%emt 0:02:11]} c5 {[%emt 0:01:31]} 22. dxc5 {[%emt 0:00:38]} Rxc5 {[%emt 0:05:13]} 23. Qd2 {[%emt 0:01:20]} Ne5 {[%emt 0:09:42]} 24. Rxc5 {[%emt 0:07:12]} Qxc5 {[%emt 0:00:01]} 25. Qxa5 {[%emt 0:00:22]} Nxd3 {[%emt 0:00:02]} 26. Nxd3 {[%emt 0:00:10]} Qc2 {[%emt 0:00:06]} 27. Qc3 {[%emt 0:03:47]} Qxc3 {[%emt 0:04:50]} 28. bxc3 {[%emt 0:00:02]} Rc8 {[%emt 0:00:38]} 29. Nf3 {[%emt 0:01:16]} Rxc3 {[%emt 0:07:28]} 30. Nb4 {[%emt 0:00:09]} Kf8 {[%emt 0:01:55]} 31. Nd4 {[%emt 0:00:18]} Bd7 {[%emt 0:00:05]} 32. Kf1 {[%emt 0:00:25]} Ke7 {[%emt 0:00:25]} 33. Ke2 {[%emt 0:00:19]} Kd6 {[%emt 0:00:38]} 34. f3 {[%emt 0:00:07]} h5 {[%emt 0:00:11]} 35. Kd2 {[%emt 0:00:35]} Rc4 {[%emt 0:00:08]} 36. Rb1 {[%emt 0:02:11]} Ne8 {[%emt 0:01:19]} 37. Na2 {[%emt 0:03:19]} Nc7 {[%emt 0:02:55]} 38. Nc3 {[%emt 0:00:06]} Kc5 {[%emt 0:00:42]} 39. Rb2 {[%emt 0:02:51]} b4 {[%emt 0:03:02]} 40. axb4+ {[%emt 0:00:27]} Rxb4 {[%emt 0:00:01]} 41. Ra2 {[%emt 0:02:01]} Kd6 {[%emt 0:00:51]} 42. Kd3 {[%emt 0:00:45]} g6 {[%emt 0:01:40]} 43. Ra7 {[%emt 0:01:03]} Rc4 {[%emt 0:03:03]} 44. e4 {[%emt 0:01:56]} Rc5 {[%emt 0:00:01]} 45. f4 {[%emt 0:00:02]} f6 {[%emt 0:00:51]} 46. exd5 {[%emt 0:00:16]} Bf5+ {[%emt 0:00:31]} 47. Kd2 {[%emt 0:00:32]} Rc4 {[%emt 0:00:33]} 48. Nxf5+ {[%emt 0:02:37]} gxf5 {[%emt 0:00:01]} 49. Ra5 {[%emt 0:01:00]} Rc5 {[%emt 0:00:26]} 50. Rxc5 {[%emt 0:00:57]} Kxc5 {[%emt 0:00:01]} 51. Ke3 {[%emt 0:01:01]} 1/2-1/2

[Event "1000GM Spring GM-A 2024"]
[Site "New York"]
[Date "2024.03.29"]
[Round "4.3"]
[White "Zilka, Stepan"]
[Black "Huston, Gus"]
[Result "1/2-1/2"]
[ECO "B68"]
[WhiteElo "2589"]
[BlackElo "2401"]
[Annotator "TA"]
[PlyCount "82"]
[EventDate "2024.03.26"]
[EventType "tourn"]
[EventCountry "USA"]
[SourceTitle "playchess.com"]
[Source "ChessBase"]
[SourceQuality "1"]
[TimeControl "5400+30"]

{[%evp 54,82,-127,-282,-266,-262,-277,-235,-110,-130,-102,-450,-433,-929,-893,-2402,-2083,-29983,-29984,-29984,-828,-627,0,0,0,0,0,0,0,0,0]} 1. e4 {[%emt 0:00:04]} c5 {[%emt 0:00:27]} 2. Nf3 {[%emt 0:00:06]} d6 {[%emt 0:00:03]} 3. d4 {[%emt 0:00:04]} cxd4 {[%emt 0:00:02]} 4. Nxd4 {[%emt 0:00:05]} Nf6 {[%emt 0:00:04]} 5. Nc3 {[%emt 0:00:04]} Nc6 {[%emt 0:00:03]} 6. Bg5 {[%emt 0:00:09]} e6 {[%emt 0:00:04]} 7. Qd2 {[%emt 0:00:21]} a6 {[%emt 0:00:12]} 8. O-O-O {[%emt 0:00:22]} Bd7 {[%emt 0:00:03]} 9. f4 {[%emt 0:00:31]} Be7 {[%emt 0:00:08]} 10. Qe1 {[%emt 0:09:56]} Rc8 {[%emt 0:08:40]} 11. Nxc6 {[%emt 0:04:55]} Bxc6 {[%emt 0:03:05]} 12. Bd3 {[%emt 0:06:57]} Nd7 {[%emt 0:07:43]} 13. Bxe7 {[%emt 0:02:27]} Qxe7 {[%emt 0:00:58]} 14. Kb1 {[%emt 0:01:06]} Nc5 {[%emt 0:02:29]} 15. Rf1 {[%emt 0:01:26]} b5 {[%emt 0:02:21]} 16. Qg3 {[%emt 0:03:01]} f6 {[%emt 0:03:50]} 17. e5 {[%emt 0:02:57]} dxe5 {[%emt 0:02:23]} 18. Bxh7 {[%emt 0:00:11]} e4 {[%emt 0:18:13]} 19. f5 {[%emt 0:12:15]} b4 {[%emt 0:09:34]} 20. Ne2 {[%emt 0:00:01]} e5 {[%emt 0:03:52]} 21. Bg6+ {[%emt 0:00:01]} Kf8 {[%emt 0:00:01]} 22. Rd2 {[%emt 0:00:09]} Qc7 {[%emt 0:04:28]} 23. Qe3 {[%emt 0:03:42]} Bb5 {[%emt 0:00:50]} 24. Rfd1 {[%emt 0:01:06]} Ke7 {[%emt 0:02:14]} 25. Ng3 {[%emt 0:01:05]} Rhd8 {[%emt 0:04:44]} 26. Nh5 {[%emt 0:12:49]} Rxd2 {[%emt 0:09:09]} 27. Rxd2 {[%emt 0:01:04]} Na4 $2 {[%emt 0:01:07]} (27... b3 $19 28. axb3 (28. cxb3 Bd3+ 29. Rc2 Bxc2+ 30. Ka1 Nxb3+) 28... Bd3 29. Nxf6 (29. cxd3 $2 Nxb3 30. Rd1 $19)) 28. Nxf6 $2 {[%emt 0:07:21]} (28. Qxe4 $2 Qc3 29. Qb7+ Rc7 30. bxc3 Nxc3+ (30... Rxb7 31. cxb4 Bc4 32. a3 $11) 31. Kb2 Rxb7 32. Nxg7 e4 $19) (28. Nxg7 $2 Qc4 29. Rf2 Rd8 $19 (29... Qd4 30. Qxd4 exd4 31. Rf4 $17)) (28. Qb3 $17 {is a better defense.} Qc4 29. Ng3) 28... gxf6 $19 {[%emt 0:05:14]} (28... Kxf6 29. Qg3) 29. Qh6 {[%emt 0:00:10]} (29. Qxe4 $2 Qc3 30. bxc3 Nxc3+ 31. Kb2 Nxe4 $19) 29... Bd3 $1 {[%emt 0:00:23]} 30. Qg7+ {[%emt 0:06:56] [#]} (30. cxd3 $2 Qc1#) 30... Kd6 $1 {[%emt 0:00:02]} 31. Qxf6+ {[%emt 0:00:08]} (31. Bf7 $2 Qc5 32. Bh5 (32. cxd3 $2 Qc1#) (32. Qxf6+ $2 Kc7 $19) 32... Nc3+ (32... Qg1+ $2 33. Bd1 $19) 33. Kc1 (33. bxc3 $2 bxc3 34. Qxf6+ Kc7 $19) 33... Nd5 $19 (33... Nxa2+ $2 34. Kb1 $19)) 31... Kd5 {[%emt 0:00:07]} 32. Bf7+ $2 {[%emt 0:03:29][%mdl 8192]} (32. cxd3 $2 Qc1#) (32. Be8 $17 {was the crucial defense.} Rxe8 33. cxd3) 32... Kd4 $19 {[%emt 0:00:17]} 33. Bb3 {[%emt 0:00:06]} (33. Bh5 $142 Nxb2 34. Kxb2) 33... Nxb2 $1 $19 {[%emt 0:01:40]} 34. Qh4 {[%emt 0:07:12]} Qc3 {[%emt 0:01:25]} 35. Qh6 {[%emt 0:01:43]} Rc6 {[%emt 0:06:29]} 36. f6 {[%emt 0:00:03]} e3 {[%emt 0:01:12]} (36... Nc4 $142 37. Bxc4 Kxc4 (37... Qxc4 38. Qh4 $11) 38. Rf2 Qe1+ 39. Qc1 Qxc1+ (39... Qxf2 40. a4 Qxc2+ 41. Qxc2+ Bxc2+ 42. Kb2 Rxf6 43. Kxc2 Rf2+ 44. Kd1 b3 45. g4 b2 46. Ke1 e3 47. h4 b1=Q#) 40. Kxc1 e3 41. Rd2 exd2+ 42. Kxd2 Bxc2 (42... Bg6 $2 43. f7 $19) 43. f7 Rf6 44. Kxc2 Rxf7 45. Kd2 Rf2+ 46. Ke3 Rxa2 (46... Rxg2 47. h4 Rxa2 48. Ke4 b3 49. Kf5 b2 50. Kxe5 b1=Q 51. h5 Rf2 52. Kd6 Qb7 53. Ke6 Rf7 54. h6 Qe7#) 47. Kf3 b3 48. h4 b2 49. Kg4 b1=Q (49... b1=R 50. g3 e4 51. h5 e3 52. h6 e2 53. h7 e1=Q 54. h8=Q Qe6+ 55. Kf4 Rf1+ 56. Kg5 Ra5+ 57. Qe5 Rxe5+ 58. Kh4 Rh1#) 50. Kg5 Rxg2+ 51. Kf6 Rf2+ 52. Kg7 Qg1+ 53. Kh6 Rf7 54. Kh5 Rh7#) 37. Qh4+ $19 {[%emt 0:00:44] [#]} e4 $2 {[%emt 0:01:34]} ({Better is} 37... Kc5 $1 $19 38. f7 exd2 (38... Rc8 39. Qe7+ Kb5 40. f8=Q $11) 39. f8=Q+ (39. f8=B+ Kb5 40. Qxb4+ Qxb4 41. Bxb4 d1=Q+ 42. Kxb2 Rxc2+ 43. Bxc2 Qxc2+ 44. Ka3 Qc1+ 45. Kb3 Bc4#) 39... Kb5 40. Qb8+ (40. cxd3 $2 Qc1#) 40... Rb6 41. Qxb6+ (41. Qe8+ $2 Ka5 $19) 41... Kxb6 42. Qd8+ Qc7 43. Qxc7+ Kxc7 44. cxd3 d1=Q+ (44... d1=B 45. Kxb2 Be2 46. Kc2 $16) 45. Bxd1 Nxd1) 38. f7 $1 $11 {[%emt 0:00:08]} exd2 {[%emt 0:00:38]} 39. Qf2+ {[%emt 0:02:44]} Ke5 $1 {[%emt 0:01:23]} (39... e3 $2 40. Qh4+ Kc5 41. f8=Q+ (41. f8=R $2 d1=Q#) 41... Kb5 42. Qb8+ (42. cxd3 $2 Qc1#) 42... Rb6 43. Qh5+ Qc5 44. Qbe8+ Rc6 45. Qxc5+ (45. Kxb2 Qxh5 46. Qxh5+ Kb6 $18) (45. cxd3 d1=Q+ 46. Bxd1 Nxd1 $18) 45... Kxc5 46. Qxe3+ (46. Kxb2 d1=Q $11) 46... Kb5 47. Qxd2 $18 (47. Kxb2 $2 d1=N+ 48. Kb1 Bxc2+ 49. Bxc2 Nxe3 $19) (47. cxd3 d1=Q+ 48. Bxd1 Nxd1 $18)) 40. Qg3+ {[%emt 0:00:10]} Kd4 {[%emt 0:00:52]} 41. Qf2+ {[%emt 0:00:06]} Ke5 $1 {[%emt 0:00:35]} ({Don't go for} 41... e3 $2 42. Qh4+ Kc5 43. f8=Q+ (43. f8=R $2 d1=Q#) 43... Kb5 44. Qb8+ (44. cxd3 $2 Qc1#) 44... Rb6 45. Qh5+ Qc5 46. Qbe8+ Rc6 47. Qxc5+ (47. Kxb2 Qxh5 48. Qxh5+ Kb6 $18) (47. cxd3 d1=Q+ 48. Bxd1 Nxd1 $18) 47... Kxc5 48. Qxe3+ (48. Kxb2 d1=Q $11) 48... Kb5 49. Qxd2 $18 (49. Kxb2 $2 d1=N+ 50. Kb1 Bxc2+ 51. Bxc2 Nxe3 $19) (49. cxd3 d1=Q+ 50. Bxd1 Nxd1 $18)) 1/2-1/2